bitfinex/quotes_ETHUSD_20251213
["timestamp","ask_amount","ask_price","bid_price","bid_amount"]
[1765636399036,0.30023523,3103.8,3103.7,4.67004391]
[1765636399441,0.76303523,3103.8,3103.6,3.22199716]
[1765636399619,0.9178,3103.8,3103.7,0.512]
[1765636399814,0.75549024,3103.8,3103.7,0.512]
[1765636400040,1.21829024,3103.8,3103.7,0.512]
[1765636416975,1.68106194,3103.8,3103.7,0.512]
[1765636417754,4.90291901,3103.8,3103.1,3.22257841]
[1765636417952,0.489,3103.2,3102.8,0.512]
[1765636418150,0.30049024,3103.1,3102.8,0.512]
[1765636418348,0.30049024,3103.0,3102.8,0.512]
[1765636418558,0.78949024,3102.9,3102.8,0.512]
[1765636419422,0.30049024,3102.9,3102.8,3.73489544]
[1765636419551,0.30049024,3102.9,3102.8,0.7124]
[1765636419750,1.44299024,3102.9,3102.8,0.512]
[1765636419969,2.38229081,3102.9,3102.8,0.512]
[1765636421281,1.44299024,3102.9,3102.8,0.512]
[1765636422553,0.30049024,3102.9,3102.8,3.93529544]
[1765636422753,0.30025396,3102.9,3102.8,3.93529544]
[1765636423984,0.30025396,3102.9,3102.5,0.002]
[1765636423985,0.78925396,3102.9,3102.5,0.002]
[1765636424157,0.489,3102.7,3102.5,0.002]
[1765636424479,0.30025396,3102.6,3102.5,3.54790417]
[1765636424679,0.30025396,3102.6,3102.5,4.05990417]
[1765636424881,0.30025396,3102.6,3102.5,4.26030417]
[1765636425080,0.30025396,3102.6,3102.5,1.03712995]
[1765636425284,0.30025396,3102.6,3102.5,0.7144]
[1765636426658,0.30025396,3102.6,3102.5,0.514]
[1765636427384,0.30025396,3102.6,3102.5,3.73720709]
[1765636427759,0.30025396,3102.6,3102.5,3.93760709]
[1765636428562,0.30025396,3102.6,3102.5,4.13800709]
[1765636428780,0.30025396,3102.6,3102.5,5.34736697]
[1765636431991,0.30025396,3102.6,3102.5,5.14696697]
[1765636432291,0.30025396,3102.6,3102.5,5.34736697]
[1765636433065,3.22159926,3104.1,3102.5,8.57057406]
[1765636433066,0.30025161,3103.2,3102.5,8.57057406]
[1765636433260,0.30025161,3103.1,3102.6,0.2004]
[1765636433471,0.30025161,3103.0,3102.7,0.85705741]
[1765636433676,0.30025161,3102.9,3102.7,0.85705741]
[1765636433993,0.6535,3103.5,3102.8,6.44579088]
[1765636434194,0.3002765,3103.4,3102.9,0.512]
[1765636434367,0.3002765,3103.3,3102.9,0.512]
[1765636434691,0.3002765,3103.2,3103.0,0.2004]
[1765636434884,0.3002765,3103.1,3103.0,0.2004]
[1765636435368,0.3002765,3103.1,3103.0,0.4008]
[1765636435887,0.3002765,3103.1,3103.0,3.62348772]
[1765636436494,0.1877,3103.9,3103.0,14.79797981]
[1765636436495,0.001,3103.9,3103.0,14.79797981]
[1765636436689,0.30047604,3103.8,3103.7,0.2004]
[1765636436875,0.30047604,3103.8,3103.7,0.7124]
[1765636437295,0.30047604,3103.8,3103.7,0.512]
[1765636438489,0.30047604,3103.8,3103.7,3.93436088]
[1765636440106,0.30047604,3103.8,3103.7,4.85041375]
[1765636441096,0.3005113,3103.8,3103.7,4.85041375]
[1765636441674,0.3005113,3103.8,3103.7,4.65001375]
[1765636443894,0.7636113,3103.8,3103.7,3.73396088]
[1765636444101,1.2522113,3103.8,3103.7,0.512]
[1765636444782,1.2522113,3103.8,3103.7,3.73396088]
[1765636445197,1.2522113,3103.8,3103.3,6.44475236]
[1765636445493,0.4631,3103.5,3103.2,3.22244424]
[1765636445668,3.40528153,3103.9,3103.4,0.512]
[1765636445866,0.64063596,3103.8,3103.4,0.512]
[1765636446096,0.4631,3103.5,3103.4,0.512]
[1765636446267,0.76320781,3103.5,3103.4,0.512]
[1765636446474,1.25180781,3103.5,3103.4,0.512]
[1765636448996,1.25180781,3103.5,3103.2,3.22244253]
[1765636449197,1.25180781,3103.4,3103.3,0.512]
[1765636449374,0.78870781,3103.4,3103.3,0.512]
[1765636449572,1.25180781,3103.4,3103.3,0.512]
[1765636453185,8.1437508,3103.4,3102.5,3.22518633]
[1765636453374,0.4631,3103.0,3102.6,0.512]
[1765636453699,0.30014679,3102.9,3102.6,0.512]
[1765636453905,0.30014679,3102.8,3102.6,0.512]
[1765636454095,0.6711,3102.9,3102.6,0.512]
[1765636454292,0.4631,3102.7,3102.6,3.73504584]
[1765636454798,0.76324347,3102.7,3102.6,3.73504584]
[1765636455004,0.76324347,3102.7,3102.6,0.512]
[1765636455201,0.76324347,3102.7,3102.6,3.7351032]
[1765636457202,0.30014347,3102.7,3102.6,3.9355032]
[1765636459007,0.30014347,3102.7,3102.6,4.1359032]
[1765636459705,0.30014347,3102.7,3102.6,3.9355032]
[1765636462806,0.30014347,3102.7,3102.6,5.0598147]
[1765636462980,0.1907,3103.4,3102.6,8.4833179]
[1765636463184,0.30028945,3103.3,3102.7,0.23262999]
[1765636463392,0.30028945,3103.2,3102.7,0.03222999]
[1765636463596,0.30028945,3103.1,3102.8,6.44579088]
[1765636463807,0.30028945,3103.0,3102.9,0.66461909]
[1765636464002,0.30028945,3103.0,3102.9,0.86501909]
[1765636464305,0.30028945,3103.0,3102.9,1.06541909]
[1765636465209,0.30028945,3103.0,3102.9,0.86501909]
[1765636465386,0.30028945,3103.0,3102.9,0.2004]
[1765636465781,0.30028945,3103.0,3102.9,3.42319158]
[1765636466293,0.30028945,3103.0,3102.9,7.30319158]
[1765636466683,0.76418945,3103.0,3102.9,7.30319158]
[1765636467108,0.76418945,3103.0,3102.9,7.10279158]
[1765636467983,0.7641609,3103.0,3102.9,7.10279158]
[1765636468879,0.7641609,3103.0,3102.9,8.33576028]
[1765636468880,0.3002609,3103.0,3102.9,8.33576028]
[1765636469287,0.3002609,3103.0,3102.9,4.45576028]
[1765636470895,0.4922,3103.6,3102.9,7.87895186]
[1765636471095,0.30031551,3103.5,3103.0,0.512]
[1765636471417,0.30031551,3103.4,3103.0,0.512]
[1765636471614,0.30031551,3103.3,3103.0,1.67338473]
[1765636471789,0.30031551,3103.2,3103.0,1.67338473]
[1765636471981,0.30031551,3103.1,3103.0,1.87378473]
[1765636472887,0.30031551,3103.1,3103.0,5.29687245]
[1765636475512,0.30031551,3103.1,3103.0,10.02512686]
[1765636476588,0.001,3103.9,3103.0,17.05097759]
[1765636476788,0.30077122,3103.8,3103.3,4.72825441]
[1765636477020,0.30077122,3103.7,3103.4,0.512]
[1765636477192,0.001,3103.9,3103.4,0.512]
[1765636477193,0.30077122,3103.6,3103.4,0.512]
[1765636477397,0.30077122,3103.5,3103.4,0.512]
[1765636477590,0.30077122,3103.5,3103.4,4.27833778]
[1765636477790,0.30077122,3103.5,3103.4,4.47873778]
[1765636477990,0.30077122,3103.5,3103.4,4.67913778]
[1765636480597,0.30077122,3103.5,3103.4,4.47873778]
[1765636481421,0.30077122,3103.5,3103.4,4.67913778]
[1765636483427,0.001,3103.9,3103.4,11.12368246]
[1765636483627,0.001,3103.9,3103.8,0.2004]
[1765636483830,0.30138832,3103.9,3103.8,0.7124]
[1765636484331,0.30138832,3103.9,3103.8,3.93425707]
[1765636484698,0.30138832,3103.9,3103.8,4.13465707]
[1765636484900,0.001,3103.9,3103.8,4.13465707]
[1765636485105,0.001,3103.9,3103.8,5.66534149]
[1765636486333,0.001,3103.9,3103.8,6.24581678]
[1765636487437,0.001,3103.9,3103.8,10.97407119]
[1765636491013,0.001,3103.9,3103.8,11.37957519]
[1765636491206,0.001,3103.9,3103.8,11.50854816]
[1765636492109,0.001,3103.9,3103.8,16.22510849]
[1765636494168,0.001,3104.2,3103.9,0.98597929]
[1765636494464,0.001,3104.2,3104.1,10.76649403]
[1765636494812,0.001,3104.2,3104.1,10.96689403]
[1765636495221,0.001,3104.2,3104.1,14.18843972]
[1765636496641,0.001,3104.2,3104.1,14.31740104]
[1765636498313,0.001,3104.2,3104.1,14.31398378]
[1765636498514,0.001,3104.2,3104.1,16.31354037]
[1765636498927,0.001,3104.5,3104.2,0.98597929]
[1765636499131,0.001,3104.5,3104.4,10.22227277]
[1765636499347,0.001,3104.9,3104.7,0.405504]
[1765636499543,0.001,3104.9,3104.8,11.33917677]
[1765636499843,0.001,3104.9,3104.8,13.17534735]
[1765636500148,0.001,3104.9,3104.8,13.30428207]
[1765636500949,0.001,3104.9,3104.8,8.58358333]
[1765636501110,0.001,3104.9,3104.8,13.30428207]
[1765636501448,0.001,3104.9,3104.8,16.52510144]
[1765636504454,0.001,3104.9,3104.8,15.81370144]
[1765636504658,1.1693,3104.9,3104.8,4.31229466]
[1765636504945,1.1693,3104.9,3104.8,3.73181937]
[1765636505319,1.1693,3104.9,3104.8,4.31229466]
[1765636505535,1.1693,3104.9,3104.8,3.73181937]
[1765636505741,1.1693,3104.9,3104.8,8.45251811]
[1765636506332,0.001,3104.9,3104.8,10.80624211]
[1765636506532,0.001,3104.9,3104.8,15.52694085]
[1765636506744,0.001,3104.9,3104.8,15.8562764]
[1765636507956,0.001,3104.9,3104.8,11.13557766]
[1765636508261,0.001,3104.9,3104.8,10.93517766]
[1765636509057,0.001,3104.9,3104.8,15.8562764]
[1765636509562,0.001,3104.9,3104.8,15.6558764]
[1765636510063,0.001,3104.9,3104.8,15.8562764]
[1765636511527,0.001,3105.1,3104.9,0.98597929]
[1765636511745,0.001,3105.4,3105.1,0.605904]
[1765636511949,0.001,3105.5,3105.4,9.63908]
[1765636512243,0.001,3105.8,3105.4,1.18637929]
[1765636512430,0.001,3105.8,3105.5,10.82817677]
[1765636512849,0.001,3105.8,3105.6,26.13511229]
[1765636513054,0.001,3105.8,3105.7,14.3601668]
[1765636513258,0.001,3105.8,3105.7,11.13877677]
[1765636513455,0.001,3105.8,3105.7,14.55906278]
[1765636514549,0.001,3106.1,3105.8,0.98597929]
[1765636514862,0.001,3106.1,3106.0,5.90707803]
[1765636515365,0.001,3106.1,3106.0,6.10747803]
[1765636515565,0.001,3106.1,3106.0,10.46690543]
[1765636515762,0.001,3106.1,3106.0,10.56135259]
[1765636516059,0.4759,3107.5,3106.3,0.405504]
[1765636516272,0.4759,3107.5,3107.0,0.405504]
[1765636516455,0.4759,3107.5,3107.4,5.30117403]
[1765636516764,0.9716,3107.5,3107.4,5.30117403]
[1765636517634,1.27047189,3107.5,3107.1,0.511]
[1765636517836,0.4957,3107.2,3107.1,0.511]
[1765636518032,0.79457189,3107.2,3107.1,0.511]
[1765636518340,1.27047189,3107.2,3107.1,0.511]
[1765636518558,1.27047189,3107.2,3107.1,3.72943519]
[1765636519060,1.27047189,3107.2,3106.7,4.72069874]
[1765636519238,0.77477189,3107.1,3107.0,3.21850607]
[1765636519661,1.27047189,3107.1,3106.9,3.21864237]
[1765636519849,0.4759,3107.0,3106.9,3.21864237]
[1765636520053,0.9716,3107.0,3106.9,3.21864237]
[1765636520255,0.9716,3107.0,3106.8,0.511]
[1765636520571,1.0662,3106.9,3106.8,4.31022126]
[1765636522139,0.9576,3106.9,3106.8,4.31022126]
[1765636522339,1.14,3106.9,3106.8,4.31022126]
[1765636524839,0.4968,3106.9,3106.8,4.31022126]
[1765636525039,1.1762,3106.9,3106.8,4.31022126]
[1765636525451,1.47517247,3106.9,3106.8,4.31022126]
[1765636525846,1.1762,3106.9,3106.8,9.03092]
[1765636527438,1.47529314,3106.9,3106.8,9.03092]
[1765636528151,1.47529314,3106.9,3106.8,3.79922126]
[1765636528360,1.47536484,3106.9,3106.8,4.31022126]
[1765636530973,1.47536484,3106.9,3106.8,0.511]
[1765636531939,1.47536484,3106.9,3106.8,3.72974597]
[1765636532163,1.47536484,3106.9,3106.8,0.511]
[1765636532865,1.47536484,3106.9,3106.8,3.72974597]
[1765636541655,1.47536484,3106.9,3106.8,0.511]
[1765636544300,1.47536484,3106.9,3106.8,3.72974597]
[1765636545871,0.79596484,3106.9,3106.8,3.72974597]
[1765636546079,0.29916484,3106.9,3106.8,3.72974597]
[1765636546283,0.79596484,3106.9,3106.8,3.72974597]
[1765636546799,0.29916484,3106.9,3106.8,3.93014597]
[1765636547028,0.29916484,3106.9,3106.8,5.43854008]
[1765636547701,0.79596484,3106.9,3106.8,5.23814008]
[1765636547879,0.79596484,3106.9,3106.8,3.72974597]
[1765636551214,0.29916484,3106.9,3106.8,3.93014597]
[1765636554991,0.29916484,3106.9,3106.8,3.72974597]
[1765636555193,1.47466484,3106.9,3106.8,3.72974597]
[1765636555719,0.79516484,3106.9,3106.8,3.72974597]
[1765636556803,0.29916484,3106.9,3106.8,3.93014597]
[1765636558723,1.47466484,3106.9,3106.8,3.72974597]
[1765636561018,1.47466484,3106.9,3106.8,0.511]
[1765636561429,1.47466484,3106.9,3106.8,3.72974597]
[1765636561900,1.47466484,3106.9,3106.8,0.511]
[1765636563603,1.47466484,3106.9,3106.8,3.72974597]
[1765636563833,1.47466484,3106.9,3106.8,0.511]
[1765636564515,4.69330721,3106.9,3106.0,1.54717101]
[1765636564704,0.496,3106.1,3105.6,3.21989938]
[1765636564910,0.5832,3105.7,3105.6,3.21989938]
[1765636565238,0.88236484,3105.7,3105.6,4.31137467]
[1765636565535,1.36746484,3105.7,3105.6,4.31137467]
[1765636566221,1.0683,3105.7,3105.6,4.31137467]
[1765636567327,1.0683,3105.7,3105.6,3.73089938]
[1765636567740,1.0683,3105.7,3105.6,0.511]
[1765636567942,1.0683,3105.7,3105.6,3.73098969]
[1765636568644,0.6795,3106.0,3105.6,7.15137938]
[1765636568847,0.29983073,3105.9,3105.6,7.15137938]
[1765636569020,0.496,3105.7,3105.6,3.73098969]
[1765636569411,0.9811,3105.7,3105.6,3.73098969]
[1765636571118,0.1944,3106.0,3105.6,7.15137938]
[1765636571442,0.29957742,3105.9,3105.6,7.15137938]
[1765636571607,0.6795,3106.0,3105.6,7.92456485]
[1765636571807,0.29955774,3105.9,3105.6,7.92456485]
[1765636572009,0.6795,3106.0,3105.6,7.92456485]
[1765636572248,0.29955774,3105.9,3105.6,7.92456485]
[1765636572450,0.496,3105.7,3105.6,4.50417516]
[1765636572633,0.496,3105.7,3105.6,0.511]
[1765636572947,0.9811,3105.7,3105.6,3.73098969]
[1765636574969,0.9811,3105.7,3105.6,0.511]
[1765636575256,1.28047545,3105.7,3105.6,0.511]
[1765636577723,1.28047545,3105.7,3105.3,0.511]
[1765636577935,0.496,3105.4,3105.3,0.511]
[1765636578444,0.9811,3105.4,3105.3,0.511]
[1765636579950,0.9811,3105.4,3104.8,3.22273317]
[1765636580254,0.4851,3105.3,3105.0,0.511]
[1765636580457,0.6904,3105.1,3105.0,0.511]
[1765636580810,1.1755,3105.1,3105.0,0.511]
[1765636581434,0.1922,3105.6,3105.0,7.35302382]
[1765636581635,0.1922,3105.6,3105.2,3.22040448]
[1765636581953,0.1922,3105.6,3105.2,6.44080896]
[1765636582119,0.49117046,3105.6,3105.2,6.44080896]
[1765636582322,0.6619,3105.6,3105.2,7.16253986]
[1765636583553,3.41397501,3106.0,3105.5,3.42049338]
[1765636583554,0.1944,3106.0,3105.5,3.42049338]
[1765636583852,0.29903741,3105.9,3105.5,3.93149338]
[1765636584057,0.29903741,3105.8,3105.5,3.93149338]
[1765636584216,0.76873741,3105.9,3105.5,3.93149338]
[1765636584416,0.29903741,3105.8,3105.5,3.93149338]
[1765636584617,0.4956,3105.6,3105.5,0.511]
[1765636585118,0.9832,3105.6,3105.5,0.511]
[1765636585643,0.9832,3105.6,3105.5,3.73109338]
[1765636586039,0.4956,3105.6,3105.5,3.73109338]
[1765636586222,0.4876,3105.8,3105.5,3.93149338]
[1765636586431,0.29915869,3105.7,3105.5,3.93149338]
[1765636586627,0.78675869,3105.9,3105.5,4.32464272]
[1765636586950,0.29915869,3105.8,3105.5,7.15158676]
[1765636587117,0.78675869,3105.9,3105.5,3.73109338]
[1765636587315,0.4624,3105.6,3105.5,3.73109338]
[1765636588334,0.4876,3105.8,3105.5,3.73109338]
[1765636588539,0.29949853,3105.7,3105.5,6.95118676]
[1765636588742,0.4876,3105.8,3105.5,4.42621206]
[1765636588949,0.29949889,3105.7,3105.5,4.42621206]
[1765636589266,0.4876,3105.8,3105.5,4.42621206]
[1765636589435,0.29965455,3105.7,3105.5,4.42621206]
[1765636589636,0.29965455,3105.6,3105.5,4.42621206]
[1765636591664,0.76205455,3105.6,3105.5,0.511]
[1765636591833,1.24965455,3105.6,3105.5,0.511]
[1765636593039,1.24965455,3105.6,3104.8,3.22281009]
[1765636593040,7.68963393,3105.6,3104.8,3.22281009]
[1765636593239,0.78725455,3105.5,3104.9,0.511]
[1765636593466,0.29965455,3105.4,3104.9,0.511]
[1765636593736,0.4624,3105.0,3104.9,0.511]
[1765636593942,0.76205455,3105.0,3104.9,0.511]
[1765636594185,1.24965455,3105.0,3104.9,0.511]
[1765636595277,0.76205455,3105.0,3104.9,3.73171564]
[1765636599874,1.24965455,3105.0,3104.9,3.73171564]
[1765636600544,0.76205455,3105.0,3104.9,3.73171564]
[1765636601450,0.29965455,3105.0,3104.9,3.93211564]
[1765636605482,1.24965455,3105.0,3104.9,3.73171564]
[1765636606878,0.29965455,3105.0,3104.9,3.93211564]
[1765636607122,0.29965455,3105.0,3104.9,5.57813196]
[1765636607453,0.29965455,3105.0,3104.9,10.30038406]
[1765636608381,0.29965455,3105.0,3104.9,5.57813196]
[1765636611863,5.68941841,3106.6,3105.0,0.58047529]
[1765636611864,0.4876,3106.1,3105.0,0.58047529]
[1765636612065,0.4876,3106.1,3105.7,0.2004]
[1765636612066,0.3004628,3106.0,3105.7,0.2004]
[1765636612393,0.3004628,3105.9,3105.8,0.511]
[1765636613053,0.3004628,3105.9,3105.8,3.93118234]
[1765636614626,1.2504628,3105.9,3105.8,3.73078234]
[1765636615691,0.7628628,3105.9,3105.8,3.73078234]
[1765636616989,0.3004628,3105.9,3105.8,9.20378181]
[1765636617391,0.3004628,3105.9,3105.8,4.48418165]
[1765636618404,0.3004628,3105.9,3105.8,4.28378165]
[1765636618569,0.3004628,3105.9,3105.8,4.48418165]
[1765636619064,0.3004628,3105.9,3105.8,9.20378181]
[1765636620972,0.3004628,3105.9,3105.8,9.00338181]
[1765636622272,0.3004628,3105.9,3105.8,9.20378181]
[1765636628201,1.4234628,3105.9,3105.8,3.73078234]
[1765636629612,1.4227196,3105.9,3105.8,3.73078234]
[1765636630100,0.7633196,3105.9,3105.8,3.73078234]
[1765636631605,0.2997196,3105.9,3105.8,3.93118234]
[1765636633684,1.2332196,3105.9,3105.8,3.73078234]
[1765636634916,1.42288835,3105.9,3105.8,3.73078234]
[1765636635208,1.42288835,3105.9,3105.8,0.511]
[1765636635684,1.42288835,3105.9,3105.8,3.73078234]
[1765636636406,1.42288835,3105.9,3105.8,0.511]
[1765636637390,1.42314822,3105.9,3105.8,3.73078234]
[1765636637797,1.42314822,3105.9,3105.8,0.511]
[1765636638120,4.6428319,3105.9,3105.3,0.511]
[1765636638322,0.4636,3105.4,3105.3,0.511]
[1765636638524,0.76374822,3105.4,3105.3,0.511]
[1765636638683,1.23364822,3105.4,3105.3,0.511]
[1765636639513,1.23364822,3105.4,3105.3,3.73129596]
[1765636641839,1.23364822,3105.4,3105.3,0.511]
[1765636643028,1.67901987,3105.4,3104.8,0.002]
[1765636643186,0.4961,3104.9,3104.8,3.80323121]
[1765636643522,0.4961,3104.9,3104.8,0.513]
[1765636643523,0.79624822,3104.9,3104.8,0.513]
[1765636643813,1.43414822,3104.9,3104.8,0.513]
[1765636644014,1.43414822,3104.9,3104.8,0.002]
[1765636646406,1.89962534,3104.9,3104.8,0.002]
[1765636649513,1.43414822,3104.9,3104.8,0.002]
[1765636650127,0.79624822,3104.9,3104.8,0.002]
[1765636650302,0.30014822,3104.9,3104.8,0.2024]
[1765636651192,0.30014822,3104.9,3104.8,0.7134]
[1765636651418,0.1895,3105.9,3104.8,0.74560819]
[1765636651596,0.78909352,3105.8,3105.2,4.72090116]
[1765636651798,0.29929352,3105.7,3105.4,3.22019707]
[1765636652156,0.29929352,3105.6,3105.4,3.22019707]
[1765636652307,0.29929352,3105.5,3105.4,3.22019707]
[1765636652623,0.29929352,3105.5,3105.3,3.73125908]
[1765636652928,0.4898,3105.8,3105.4,0.2004]
[1765636653127,0.2993059,3105.7,3105.4,0.2004]
[1765636653329,0.2993059,3105.6,3105.4,0.2004]
[1765636653529,0.2993059,3105.5,3105.4,0.2004]
[1765636653727,0.2993059,3105.5,3105.4,3.42059707]
[1765636654310,0.2993059,3105.5,3105.4,4.36465016]
[1765636656316,0.2993059,3105.5,3105.4,9.28595132]
[1765636656511,0.29950486,3106.1,3105.4,9.28595132]
[1765636656817,0.29950486,3106.0,3105.6,4.72090116]
[1765636657017,0.29950486,3105.9,3105.7,0.511]
[1765636657241,0.4898,3106.3,3105.8,0.72359012]
[1765636657416,0.2995423,3106.2,3105.8,0.2004]
[1765636657605,0.2995423,3106.1,3105.8,0.2004]
[1765636657943,0.2995423,3106.0,3105.9,3.21967867]
[1765636658550,0.2995423,3106.0,3105.9,3.42007867]
[1765636662716,0.2995423,3106.0,3105.9,8.14097983]
[1765636662903,0.2995423,3106.5,3105.9,13.54230848]
[1765636663109,0.6842,3106.9,3105.9,13.54230848]
[1765636663110,0.2995423,3106.4,3106.3,4.72090116]
[1765636663521,0.2995423,3106.4,3106.3,0.2004]
[1765636663727,0.7952423,3106.4,3106.2,0.51]
[1765636663913,0.4957,3106.4,3106.2,0.51]
[1765636664117,0.29953622,3106.3,3106.2,0.51]
[1765636664317,0.29953622,3106.3,3106.2,3.72936771]
[1765636664518,0.29953622,3106.3,3106.2,3.92976771]
[1765636665019,0.29953622,3106.3,3106.2,4.29424004]
[1765636665226,0.29953622,3106.3,3106.2,4.49464004]
[1765636665937,0.29953622,3106.3,3106.2,4.29424004]
[1765636666106,0.29953622,3106.3,3106.2,3.92976771]
[1765636668238,0.29953622,3106.7,3106.2,3.92976771]
[1765636668413,0.29953622,3106.6,3106.2,8.65066887]
[1765636668736,0.29953622,3106.5,3106.2,5.23090116]
[1765636669037,0.4957,3106.3,3106.2,0.51]
[1765636669232,0.79523622,3106.3,3106.2,0.51]
[1765636669426,0.9855,3106.3,3106.2,3.72936771]
[1765636669742,1.28503622,3106.3,3106.2,3.72936771]
[1765636670220,0.79523622,3106.3,3106.2,3.72936771]
[1765636670420,0.4957,3106.3,3106.2,3.72936771]
[1765636670620,0.79523622,3106.3,3106.2,3.72936771]
[1765636671016,0.29953622,3106.3,3106.2,3.92976771]
[1765636671221,0.78933622,3106.8,3106.2,8.65066887]
[1765636671436,0.29953622,3106.7,3106.2,8.65066887]
[1765636671636,0.29953622,3106.6,3106.2,8.65066887]
[1765636671837,0.29953622,3106.5,3106.2,8.65066887]
[1765636672042,0.1944,3106.9,3106.4,4.72090116]
[1765636672247,0.29921524,3106.8,3106.4,4.92130116]
[1765636672419,0.29921524,3106.7,3106.4,4.92130116]
[1765636672618,0.29921524,3106.6,3106.4,4.92130116]
[1765636672818,0.29921524,3106.5,3106.4,8.1404616]
[1765636673020,0.29921524,3106.7,3106.4,8.1404616]
[1765636674128,0.29921524,3106.7,3106.6,0.2004]
[1765636674319,0.29921524,3106.8,3106.6,0.7104]
[1765636674512,0.29921524,3106.7,3106.6,0.7104]
[1765636674713,0.29921524,3106.8,3106.6,3.92930595]
[1765636674920,0.29921524,3106.7,3106.6,3.92930595]
[1765636675248,0.29921524,3106.8,3106.6,3.92930595]
[1765636675547,0.29921524,3106.7,3106.6,3.92930595]
[1765636675746,0.29921524,3106.8,3106.6,3.92930595]
[1765636676051,0.29921524,3106.7,3106.6,3.92930595]
[1765636676342,0.29921524,3106.8,3106.6,3.92930595]
[1765636676542,0.29921524,3106.7,3106.6,0.7104]
[1765636676746,0.4739,3106.7,3106.6,0.51]
[1765636676949,0.77311524,3106.7,3106.6,0.51]
[1765636680438,1.22881524,3106.7,3106.1,0.6501]
[1765636680652,1.22881524,3106.6,3106.2,3.72929669]
[1765636680853,0.29921524,3106.5,3106.3,3.72924261]
[1765636681057,0.29921524,3106.4,3106.3,0.51]
[1765636681228,0.29921524,3106.4,3105.1,0.0651]
[1765636681229,0.77311524,3106.4,3105.1,0.0651]
[1765636681428,0.75491524,3106.3,3105.5,0.51]
[1765636681736,0.29921524,3106.2,3105.5,0.51]
[1765636681921,0.29921524,3106.1,3105.6,3.21998969]
[1765636682128,0.29921524,3106.0,3105.6,3.21998969]
[1765636682328,0.29921524,3105.9,3105.6,6.43997938]
[1765636682528,0.29921524,3105.8,3105.6,6.43997938]
[1765636682854,0.29921524,3105.7,3105.6,3.21998969]
[1765636683052,0.29921524,3105.7,3105.5,4.08987306]
[1765636683260,0.6416,3105.9,3105.5,4.08987306]
[1765636683551,0.29980787,3105.8,3105.5,3.7300304]
[1765636683753,0.29980787,3105.7,3105.5,3.7300304]
[1765636683927,0.4557,3105.8,3105.5,3.7300304]
[1765636684126,0.29980382,3105.7,3105.5,3.7300304]
[1765636684326,0.4557,3105.8,3105.5,3.7300304]
[1765636684523,0.29988847,3105.7,3105.5,3.7300304]
[1765636684733,0.4557,3105.8,3105.5,3.7300304]
[1765636684938,0.29988844,3105.7,3105.5,3.7300304]
[1765636685132,0.4557,3105.8,3105.5,3.7300304]
[1765636685339,0.29998404,3105.7,3105.5,3.7300304]
[1765636685538,0.29998404,3105.6,3105.5,4.31050569]
[1765636685743,0.77388404,3105.6,3105.5,0.51]
[1765636686061,1.22958404,3105.6,3105.5,0.51]
[1765636689159,1.22958404,3105.6,3104.8,0.002]
[1765636689160,1.22958404,3105.6,3105.2,0.51]
[1765636689463,0.75568404,3105.5,3105.2,3.73039405]
[1765636689683,0.29998404,3105.4,3105.2,3.73039405]
[1765636689954,0.29998404,3105.3,3105.2,3.73039405]
[1765636690336,0.29970303,3105.3,3105.2,3.93079405]
[1765636691356,0.4557,3105.8,3105.2,7.15119853]
[1765636691543,0.29963983,3105.7,3105.2,7.15119853]
[1765636691743,0.29963983,3105.6,3105.2,7.15119853]
[1765636691935,0.29963983,3105.5,3105.2,7.15119853]
[1765636692130,0.29963983,3105.4,3105.2,7.15119853]
[1765636692337,0.4557,3105.8,3105.2,7.15119853]
[1765636692553,0.29958739,3105.7,3105.2,7.15119853]
[1765636692754,0.29958739,3105.6,3105.2,7.15119853]
[1765636692956,0.29958739,3105.5,3105.2,7.15119853]
[1765636693154,0.29958739,3105.4,3105.2,7.15119853]
[1765636693355,0.4557,3105.7,3105.2,7.15119853]
[1765636693555,0.29954422,3105.6,3105.2,7.15119853]
[1765636693760,0.29954422,3105.5,3105.2,7.15119853]
[1765636693964,0.29954422,3105.4,3105.2,7.15119853]
[1765636694164,0.4557,3105.7,3105.2,7.15119853]
[1765636694335,0.29950694,3105.6,3105.2,3.93079405]
[1765636694676,0.29950694,3105.5,3105.2,7.15119853]
[1765636694960,0.29950694,3105.4,3105.2,7.15119853]
[1765636695160,0.4557,3105.6,3105.2,7.15119853]
[1765636695360,0.2994762,3105.5,3105.2,7.15119853]
[1765636695542,0.2994762,3105.4,3105.2,7.15119853]
[1765636695745,0.4557,3105.6,3105.2,7.15119853]
[1765636695945,0.2994762,3105.5,3105.2,7.15119853]
[1765636696263,0.2994762,3105.4,3105.2,7.15119853]
[1765636696453,0.4557,3105.6,3105.2,7.15119853]
[1765636696659,0.2994512,3105.5,3105.2,7.15119853]
[1765636696962,0.2994512,3105.4,3105.2,7.15119853]
[1765636697187,0.4557,3105.6,3105.2,7.15119853]
[1765636697367,0.29942961,3105.5,3105.2,7.15119853]
[1765636697555,0.29942961,3105.4,3105.2,7.15119853]
[1765636697757,0.4557,3105.6,3105.2,7.15119853]
[1765636697953,0.29942959,3105.5,3105.2,3.93079405]
[1765636698147,0.29942959,3105.4,3105.2,3.93079405]
[1765636698348,0.4739,3105.3,3105.2,3.73040448]
[1765636698861,0.9296,3105.3,3105.2,3.73040448]
[1765636701861,0.9296,3105.3,3105.2,0.51]
[1765636702572,0.9296,3105.3,3105.2,3.73040448]
[1765636703261,1.22890147,3105.3,3105.2,0.51]
[1765636704369,4.44920224,3105.3,3104.9,3.88]
[1765636704557,0.4804,3105.0,3104.9,3.88]
[1765636704756,0.77970147,3105.0,3104.8,0.512]
[1765636704977,0.9071,3104.9,3104.8,0.512]
[1765636706271,1.20650663,3104.9,3104.8,0.512]
[1765636707148,0.9071,3104.9,3104.8,0.512]
[1765636707350,1.20658513,3104.9,3104.8,0.512]
[1765636708273,0.29948513,3104.9,3104.8,3.93321937]
[1765636708853,0.29948513,3104.9,3104.8,4.13361937]
[1765636712685,0.29948513,3104.9,3104.8,3.93321937]
[1765636716185,1.38768513,3104.9,3104.8,0.002]
[1765636716358,4.60840077,3104.9,3104.8,0.002]
[1765636716558,5.86351029,3104.9,3104.8,0.002]
[1765636716760,2.64279465,3104.9,3104.8,0.002]
[1765636717365,1.38768513,3104.9,3104.8,0.002]
[1765636719165,1.38820976,3104.9,3104.8,0.002]
[1765636730297,0.75610976,3104.9,3104.8,0.002]